fUSD/lending_fUSD_20251011
["ID","MTS","AMOUNT","RATE_DAILY","PERIOD"]
[390768406,1760142644392,-500.0,0.0001532,2]
[390768408,1760142644404,-495.0,0.00015348,5]
[390768410,1760142644413,-2114.0,0.00015348,5]
[390768412,1760142644422,-500.0,0.00015348,5]
[390768414,1760142644431,-480.0,0.00015348,5]
[390768416,1760142644441,-1253.0,0.00015348,5]
[390768418,1760142644451,-532.0,0.00015348,5]
[390768420,1760142644461,-500.0,0.00015348,5]
[390768422,1760142644472,-426.0,0.00015348,5]
[390768424,1760142644482,-2397.52,0.0001537,2]
[390768426,1760142644491,-500.0,0.00015375,2]
[390768428,1760142644501,-892.0,0.00015375,2]
[390768430,1760142644509,-500.0,0.00015375,2]
[390768432,1760142644519,-501.3381447,0.000154,2]
[390768434,1760142644528,-11215.18357412,0.000154,2]
[390768436,1760142644537,-495.0,0.00015402,5]
[390768438,1760142644546,-2114.0,0.00015402,5]
[390768440,1760142644556,-389.82075173,0.00015402,5]
[390768442,1760142644565,-480.0,0.00015402,5]
[390768444,1760142644574,-1253.0,0.00015402,5]
[390768446,1760142644584,-532.0,0.00015402,5]
[390768448,1760142644595,-500.0,0.00015402,5]
[390768450,1760142644604,-426.0,0.00015402,5]
[390768452,1760142644614,-500.0,0.00015429,2]
[390768454,1760142644623,-892.0,0.00015429,2]
[390768456,1760142644632,-500.0,0.00015429,2]
[390768458,1760142644641,-200.0,0.00015455,2]
[390768460,1760142644654,-200.0,0.00015455,2]
[390768461,1760142644664,-200.0,0.00015455,2]
[390768463,1760142644674,-495.0,0.00015457,5]
[390768465,1760142644683,-2114.0,0.00015457,5]
[390768467,1760142644692,-480.0,0.00015457,5]
[390768469,1760142644702,-1253.0,0.00015457,5]
[390768472,1760142644712,-532.0,0.00015457,5]
[390768474,1760142644721,-500.0,0.00015457,5]
[390768475,1760142644731,-426.0,0.00015457,5]
[390768477,1760142644740,-1600.0,0.00015461,2]
[390768479,1760142644749,-2223.06622,0.0001548,2]
[390768481,1760142644759,-500.0,0.00015484,2]
[390768483,1760142644768,-892.0,0.00015484,2]
[390768485,1760142644777,-561.72434379,0.00015484,2]
[390768487,1760142644786,-322.6107,0.00015503,2]
[390768489,1760142644795,-151.0,0.00015503,2]
[390768491,1760142644804,-151.0,0.00015503,2]
[390768493,1760142644814,-300.0,0.00015503,2]
[390768495,1760142644823,-1000.0,0.00015503,2]
[390768497,1760142644833,-500.0,0.00015503,2]
[390768499,1760142644842,-300.0,0.00015503,2]
[390768501,1760142644852,-1000.0,0.00015503,2]
[390768503,1760142644861,-500.0,0.00015503,2]
[390768505,1760142644871,-300.0,0.00015503,2]
[390768507,1760142644880,-1000.0,0.00015503,2]
[390768509,1760142644890,-1000.0,0.00015503,2]
[390768511,1760142644901,-500.0,0.00015503,2]
[390768513,1760142644910,-1000.0,0.00015503,2]
[390768515,1760142644919,-300.0,0.00015503,2]
[390768517,1760142644928,-500.0,0.00015503,2]
[390768519,1760142644938,-1000.0,0.00015503,2]
[390768520,1760142644947,-414.0,0.00015503,2]
[390768521,1760142644956,-1000.0,0.00015503,2]
[390768522,1760142644966,-500.0,0.00015503,2]
[390768523,1760142644975,-1000.0,0.00015503,2]
[390768524,1760142644985,-1000.0,0.00015503,2]
[390768525,1760142644995,-500.0,0.00015503,2]
[390768526,1760142645004,-1000.0,0.00015503,2]
[390768527,1760142645013,-500.0,0.00015503,2]
[390768528,1760142645023,-1000.0,0.00015503,2]
[390768529,1760142645033,-500.0,0.00015503,2]
[390768530,1760142645042,-1000.0,0.00015503,2]
[390768531,1760142645052,-500.0,0.00015503,2]
[390768532,1760142645062,-1000.0,0.00015503,2]
[390768533,1760142645071,-500.0,0.00015503,2]
[390768534,1760142645080,-1000.0,0.00015503,2]
[390768535,1760142645089,-1000.0,0.00015503,2]
[390768536,1760142645099,-551.80334233,0.00015503,2]
[390768537,1760142645108,-1000.0,0.00015503,2]
[390768538,1760142645117,-1000.0,0.00015503,2]
[390768539,1760142645126,-1082.97870032,0.00015503,2]
[390768540,1760142645135,-646.65982734,0.00015503,2]
[390768541,1760142645145,-1000.0,0.00015503,2]
[390768542,1760142645159,-151.0,0.00015503,2]
[390768543,1760142645168,-1000.0,0.00015503,2]
[390768544,1760142645177,-151.0,0.00015503,2]
[390768545,1760142645187,-250.0,0.00015503,2]
[390768546,1760142645196,-198.0,0.00015503,2]
[390768547,1760142645206,-187.78006524,0.00015503,2]
[390768548,1760142645215,-2000.0,0.00015503,2]
[390768549,1760142645224,-160.0,0.00015503,2]
[390768550,1760142645233,-8565.75555911,0.00015503,2]
[390768551,1760142645242,-500.0,0.00015503,2]
[390768552,1760142645252,-500.0,0.00015503,2]
[390768553,1760142645261,-500.0,0.00015503,2]
[390768554,1760142645271,-500.0,0.00015503,2]
[390768555,1760142645284,-500.0,0.00015503,2]
[390768557,1760142645293,-500.0,0.00015503,2]
[390768558,1760142645303,-500.0,0.00015503,2]
[390768559,1760142645312,-500.0,0.00015503,2]
[390768560,1760142645323,-500.0,0.00015503,2]
[390768561,1760142645333,-500.0,0.00015503,2]
[390768562,1760142645343,-151.0,0.00015503,2]
[390768563,1760142645353,-200.0,0.00015503,2]
[390768564,1760142645365,-500.0,0.00015503,2]
[390768565,1760142645381,-500.0,0.00015503,2]
[390768566,1760142645392,-500.0,0.00015503,2]
[390768567,1760142645406,-500.0,0.00015503,2]
[390768568,1760142645416,-500.0,0.00015503,2]
[390768569,1760142645426,-500.0,0.00015503,2]
[390768570,1760142645436,-500.0,0.00015503,2]
[390768572,1760142645446,-1000.0,0.00015503,2]
[390768574,1760142645455,-500.0,0.00015503,2]
[390768576,1760142645465,-500.0,0.00015503,2]
[390768578,1760142645475,-1000.0,0.00015503,2]
[390768579,1760142645484,-1000.0,0.00015503,2]
[390768581,1760142645493,-500.0,0.00015503,2]
[390768583,1760142645503,-1000.0,0.00015503,2]
[390768585,1760142645512,-1000.0,0.00015503,2]
[390768587,1760142645522,-220.0,0.00015503,2]
[390768588,1760142645531,-1000.0,0.00015503,2]
[390768589,1760142645540,-233.0,0.00015503,2]
[390768590,1760142645549,-1000.0,0.00015503,2]
[390768591,1760142645559,-1000.0,0.00015503,2]
[390768592,1760142645568,-1000.0,0.00015503,2]
[390768593,1760142645577,-1000.0,0.00015503,2]
[390768594,1760142645587,-1000.0,0.00015503,2]
[390768595,1760142645596,-1000.0,0.00015503,2]
[390768596,1760142645605,-1000.0,0.00015503,2]
[390768597,1760142645615,-621.78829552,0.00015503,2]
[390768598,1760142645624,-1000.0,0.00015503,2]
[390768599,1760142645634,-2000.0,0.00015503,2]
[390768600,1760142645643,-2000.0,0.00015503,2]
[390768601,1760142645655,-2000.0,0.00015503,2]
[390768602,1760142645665,-500.0,0.00015503,2]
[390768603,1760142645675,-2000.0,0.00015503,2]
[390768604,1760142645685,-500.0,0.00015503,2]
[390768605,1760142645696,-2000.0,0.00015503,2]
[390768606,1760142645705,-500.0,0.00015503,2]
[390768607,1760142645715,-2000.0,0.00015503,2]
[390768608,1760142645725,-500.0,0.00015503,2]
[390768609,1760142645734,-2000.0,0.00015503,2]
[390768610,1760142645744,-2000.0,0.00015503,2]
[390768611,1760142645754,-500.0,0.00015503,2]
[390768612,1760142645764,-2000.0,0.00015503,2]
[390768613,1760142645774,-500.0,0.00015503,2]
[390768615,1760142645783,-500.0,0.00015503,2]
[390768616,1760142645793,-2000.0,0.00015503,2]
[390768617,1760142645802,-500.0,0.00015503,2]
[390768618,1760142645812,-2000.0,0.00015503,2]
[390768619,1760142645821,-500.0,0.00015503,2]
[390768620,1760142645832,-2000.0,0.00015503,2]
[390768621,1760142645841,-500.0,0.00015503,2]
[390768622,1760142645850,-2000.0,0.00015503,2]
[390768623,1760142645860,-564.97074027,0.00015503,2]
[390768624,1760142645869,-2000.0,0.00015503,2]
[390768625,1760142645879,-248.71531821,0.00015503,2]
[390768626,1760142645888,-500.0,0.00015507,2]
[390768627,1760142645898,-495.0,0.00015512,5]
[390768628,1760142645911,-2114.0,0.00015512,5]
[390768629,1760142645920,-480.0,0.00015512,5]
[390768630,1760142645930,-1253.0,0.00015512,5]
[390768631,1760142645939,-532.0,0.00015512,5]
[390768632,1760142645949,-500.0,0.00015512,5]
[390768633,1760142645958,-426.0,0.00015512,5]
[390768634,1760142645968,-1000.0,0.00015521,2]
[390768635,1760142645977,-1000.0,0.00015521,2]
[390768636,1760142645986,-1000.0,0.00015521,2]
[390768637,1760142645995,-1000.0,0.00015521,2]
[390768638,1760142646005,-510.78201757,0.00015521,2]
[390768639,1760142646014,-1000.0,0.00015521,2]
[390768640,1760142646024,-1000.0,0.00015521,2]
[390768641,1760142646033,-1000.84563007,0.00015521,2]
[390768642,1760142646042,-1000.0,0.00015521,2]
[390768644,1760142646052,-1000.0,0.00015521,2]
[390768646,1760142646061,-1000.0,0.00015521,2]
[390768647,1760142646070,-500.0,0.00015539,2]
[390768648,1760142646079,-892.0,0.00015539,2]
[390768649,1760142646088,-1718.29,0.00015539,2]
[390768650,1760142646098,-500.0,0.00015547,2]
[390768651,1760142646107,-500.0,0.00015548,2]
[390768652,1760142646117,-500.01,0.00015548,2]
[390768653,1760142646127,-500.0,0.00015548,2]
[390768654,1760142646137,-8882.6885148,0.00015558,2]
[390768655,1760142646148,-495.0,0.00015567,5]
[390768656,1760142646163,-2114.0,0.00015567,5]
[390768657,1760142646173,-480.0,0.00015567,5]
[390768658,1760142646183,-1253.0,0.00015567,5]
[390768659,1760142646194,-532.0,0.00015567,5]
[390768660,1760142646205,-500.0,0.00015567,5]
[390768661,1760142646217,-426.0,0.00015567,5]
[390768662,1760142646228,-500.0,0.00015594,2]
[390768663,1760142646239,-892.0,0.00015594,2]
[390768664,1760142646250,-178.0,0.00015599,2]
[390768665,1760142646261,-200.0,0.00015609,2]
[390768666,1760142646274,-9211.34798985,0.00015613,2]
[390768667,1760142646285,-2489.44824567,0.00015617,2]
[390768669,1760142646300,-495.0,0.00015622,5]
[390768671,1760142646312,-2114.0,0.00015622,5]
[390768672,1760142646322,-480.0,0.00015622,5]
[390768673,1760142646335,-1253.0,0.00015622,5]
[390768674,1760142646346,-532.0,0.00015622,5]
[390768675,1760142646356,-500.0,0.00015622,5]
[390768676,1760142646367,-426.0,0.00015622,5]
[390768677,1760142646380,-500.0,0.00015649,2]
[390768678,1760142646392,-892.0,0.00015649,2]
[390768679,1760142646404,-200.0,0.00015657,2]
[390768680,1760142646415,-200.0,0.00015657,2]
[390768681,1760142646425,-9552.16786547,0.00015668,2]
[390768682,1760142646435,-495.0,0.00015676,5]
[390768683,1760142646445,-2114.0,0.00015676,5]
[390768684,1760142646455,-480.0,0.00015676,5]
[390768685,1760142646464,-1253.0,0.00015676,5]
[390768686,1760142646474,-532.0,0.00015676,5]
[390768687,1760142646485,-500.0,0.00015676,5]
[390768688,1760142646495,-426.0,0.00015676,5]
[390768689,1760142646504,-500.0,0.00015703,2]
[390768690,1760142646514,-892.0,0.00015703,2]
[390768691,1760142646523,-166.66,0.0001571,2]
[390768692,1760142646533,-9905.5980765,0.00015723,2]
[390768693,1760142646543,-495.0,0.00015731,5]
[390768694,1760142646553,-2114.0,0.00015731,5]
[390768695,1760142646562,-480.0,0.00015731,5]
[390768696,1760142646572,-1253.0,0.00015731,5]
[390768697,1760142646582,-532.0,0.00015731,5]
[390768698,1760142646591,-500.0,0.00015731,5]
[390768699,1760142646601,-426.0,0.00015731,5]
[390768700,1760142646611,-2223.06622,0.0001574,2]
[390768701,1760142646620,-500.0,0.00015758,2]
[390768702,1760142646630,-892.0,0.00015758,2]
[390768703,1760142646640,-10272.10520533,0.00015778,2]
[390768704,1760142646652,-500.0,0.00015781,2]
[390768705,1760142646662,-495.0,0.00015786,5]
[390768706,1760142646671,-2114.0,0.00015786,5]
[390768707,1760142646681,-480.0,0.00015786,5]
[390768708,1760142646690,-1253.0,0.00015786,5]
[390768709,1760142646699,-532.0,0.00015786,5]
[390768711,1760142646708,-500.0,0.00015786,5]
[390768713,1760142646717,-426.0,0.00015786,5]
[390768715,1760142646727,-500.0,0.00015813,2]
[390768716,1760142646736,-892.0,0.00015813,2]
[390768717,1760142646746,-1718.29,0.00015813,2]
[390768718,1760142646755,-500.0,0.00015821,2]
[390768719,1760142646764,-500.0,0.00015822,2]
[390768720,1760142646774,-500.0,0.00015822,2]
[390768721,1760142646784,-10652.17309792,0.00015833,2]
[390768722,1760142646793,-495.0,0.00015841,5]
[390768723,1760142646802,-2114.0,0.00015841,5]
[390768724,1760142646812,-480.0,0.00015841,5]
[390768725,1760142646821,-1253.0,0.00015841,5]
[390768726,1760142646832,-532.0,0.00015841,5]
[390768727,1760142646842,-500.0,0.00015841,5]
[390768728,1760142646852,-200.72,0.00015858,2]
[390768729,1760142646862,-492.93247786,0.00015868,2]
[390768730,1760142646872,-892.0,0.00015868,2]
[390768731,1760142646882,-11046.30350255,0.00015888,2]
[390768732,1760142646892,-500.0,0.0001589,2]
[390768733,1760142646903,-1098.20437616,0.00015895,2]
[390768734,1760142646912,-495.0,0.00015896,5]
[390768735,1760142646921,-2114.0,0.00015896,5]
[390768736,1760142646930,-480.0,0.00015896,5]
[390768737,1760142646939,-1253.0,0.00015896,5]
[390768738,1760142646949,-532.0,0.00015896,5]
[390768739,1760142646958,-500.0,0.00015896,5]
[390768740,1760142646967,-892.0,0.00015923,2]
[390768741,1760142646976,-500.0,0.00015933,2]
[390768742,1760142646985,-174.10265771,0.00015933,2]
[390768743,1760142646995,-500.0,0.00015933,2]
[390768744,1760142647005,-500.0,0.00015933,2]
[390768745,1760142647014,-500.0,0.00015933,2]
[390768746,1760142647023,-500.0,0.00015933,2]
[390768747,1760142647032,-500.0,0.00015933,2]
[390768748,1760142647041,-502.00065649,0.00015933,2]
[390768749,1760142647051,-500.0,0.00015933,2]
[390768750,1760142647060,-500.0,0.00015933,2]
[390768751,1760142647069,-500.0,0.00015933,2]
[390768752,1760142647078,-11455.01673214,0.00015943,2]
[390768753,1760142647088,-495.0,0.0001595,5]
[390768754,1760142647097,-2114.0,0.0001595,5]
[390768755,1760142647106,-480.0,0.0001595,5]
[390768756,1760142647115,-1253.0,0.0001595,5]
[390768757,1760142647124,-532.0,0.0001595,5]
[390768758,1760142647134,-500.0,0.0001595,5]
[390768759,1760142647143,-892.0,0.00015977,2]
[390768760,1760142647156,-2223.06622,0.0001599,2]
[390768761,1760142647165,-11878.85235123,0.00015998,2]
[390768762,1760142647175,-835.76615776,0.00016,2]
[390768763,1760142647184,-1792.61,0.00016,2]
[390768764,1760142647193,-5453.68,0.00016,2]
[390768765,1760142647203,-8878.6,0.00016,2]
[390768766,1760142647213,-206.05,0.00016,2]
[390768767,1760142647222,-495.0,0.00016005,5]
[390768768,1760142647232,-2114.0,0.00016005,5]
[390768769,1760142647241,-480.0,0.00016005,5]
[390768770,1760142647251,-1253.0,0.00016005,5]
[390768771,1760142647260,-532.0,0.00016005,5]
[390768772,1760142647269,-500.0,0.00016005,5]
[390768773,1760142647281,-433.0,0.00016028,2]
[390768774,1760142647292,-892.0,0.00016032,2]
[390768775,1760142647302,-500.84936585,0.0001605,2]
[390768776,1760142647312,-151.0,0.00016051,2]
[390768777,1760142647321,-151.0,0.00016051,2]
[390768778,1760142647333,-151.0,0.00016051,2]
[390768779,1760142647343,-12318.36988823,0.00016053,2]
[390768780,1760142647352,-500.0,0.00016055,2]
[390768781,1760142647362,-495.0,0.0001606,5]
[390768782,1760142647372,-2114.0,0.0001606,5]
[390768783,1760142647382,-480.0,0.0001606,5]
[390768784,1760142647392,-1253.0,0.0001606,5]
[390768785,1760142647404,-532.0,0.0001606,5]
[390768786,1760142647414,-500.0,0.0001606,5]
[390768787,1760142647423,-1500.0,0.00016068,2]
[390768788,1760142647432,-630.59195831,0.00016068,2]
[390768789,1760142647442,-1500.0,0.00016068,2]
[390768790,1760142647452,-1500.0,0.00016068,2]
[390768791,1760142647462,-1500.0,0.00016068,2]
[390768792,1760142647472,-1500.0,0.00016068,2]
[390768793,1760142647481,-1500.0,0.00016068,2]
[390768795,1760142647490,-1500.0,0.00016068,2]
[390768797,1760142647500,-519.46706594,0.00016068,2]
[390768799,1760142647510,-892.0,0.00016087,2]
[390768801,1760142647519,-1718.29,0.00016087,2]
[390768803,1760142647530,-500.0,0.00016095,2]
[390768804,1760142647540,-500.0,0.00016096,2]
[390768805,1760142647549,-500.0,0.00016096,2]
[390768806,1760142647558,-12774.14957409,0.00016108,2]
[390768807,1760142647570,-495.0,0.00016115,5]
[390768808,1760142647580,-2114.0,0.00016115,5]
[390768809,1760142647589,-480.0,0.00016115,5]
[390768810,1760142647599,-1253.0,0.00016115,5]
[390768811,1760142647609,-532.0,0.00016115,5]
[390768812,1760142647618,-500.0,0.00016115,5]
[390768813,1760142647628,-892.0,0.00016142,2]
[390768814,1760142647638,-13246.79310833,0.00016163,2]
[390768815,1760142647648,-495.0,0.00016169,5]
[390768816,1760142647661,-2114.0,0.00016169,5]
[390768817,1760142647672,-480.0,0.00016169,5]
[390768818,1760142647681,-1253.0,0.00016169,5]
[390768819,1760142647692,-532.0,0.00016169,5]
[390768820,1760142647702,-500.0,0.00016169,5]
[390768821,1760142647712,-500.0,0.00016175,2]
[390768822,1760142647722,-500.0,0.00016175,2]
[390768823,1760142647732,-500.0,0.00016175,2]
[390768824,1760142647742,-159.80258425,0.00016175,2]
[390768825,1760142647752,-892.0,0.00016196,2]
[390768826,1760142647762,-474.17,0.00016197,2]
[390768827,1760142647772,-61174.47713471,0.000162,5]
[390768828,1760142647782,-200.0,0.00016205,2]
[390768829,1760142647792,-308.59717103,0.00016205,2]
[390768830,1760142647802,-546.15,0.00016208,2]
[390768831,1760142647811,-13736.92445334,0.00016218,2]
[390768832,1760142647821,-502.0,0.00016224,5]
[390768833,1760142647830,-2137.0811005,0.00016224,5]
[390768834,1760142647840,-332.78203162,0.00016224,5]
[390768835,1760142647850,-1261.56728337,0.00016224,5]
[390768836,1760142647859,-551.53732015,0.00016224,5]
[390768837,1760142647869,-510.0,0.00016224,5]
[390768838,1760142647879,-3319.26432756,0.0001625,2]
[390768839,1760142647889,-905.81417167,0.00016251,2]
[390768840,1760142647899,-166.66,0.00016287,2]
[390768841,1760142647918,-500.0,0.00016329,2]
[390768842,1760142647928,-500.0,0.00016334,2]
[390768843,1760142647938,-1718.29,0.00016361,2]
[390768844,1760142647949,-500.0,0.00016369,2]
[390768845,1760142647958,-500.0,0.0001637,2]
[390768846,1760142647969,-500.0,0.0001637,2]
[390768847,1760142647979,-2826.72326084,0.00016384,2]
[390768848,1760142647989,-947.91,0.00016404,2]
[390768849,1760142647999,-983.25890506,0.0001643,2]
[390768850,1760142648008,-60901.67543424,0.00016435,2]
[390768851,1760142648018,-10000.0,0.00016438,2]
[390768852,1760142648028,-150.0,0.00016438,2]
[390768853,1760142648037,-500.0,0.00016438,2]
[390768854,1760142648047,-1000.0,0.00016438,2]
[390768855,1760142648057,-300.0,0.00016438,2]
[390768856,1760142648066,-500.0,0.00016438,2]
[390768857,1760142648076,-150.0,0.00016438,2]
[390768858,1760142648086,-162.49,0.0001644,2]
[390768859,1760142648095,-587.0,0.00016464,2]
[390768860,1760142648106,-587.0,0.00016464,2]
[390768861,1760142648116,-2351.0,0.00016466,2]
[390768862,1760142648126,-1000.0,0.00016481,2]
[390768863,1760142648138,-1000.0,0.00016481,2]
[390768864,1760142648147,-1000.0,0.00016481,2]
[390768865,1760142648160,-1000.0,0.00016481,2]
[390768866,1760142648169,-500.0,0.00016481,2]
[390768867,1760142648179,-1000.0,0.00016481,2]
[390768868,1760142648189,-1000.0,0.00016481,2]
[390768869,1760142648199,-1000.0,0.00016481,2]
[390768870,1760142648209,-1000.0,0.00016481,2]
[390768871,1760142648218,-150.0,0.00016493,2]
[390768872,1760142648228,-500.0,0.00016493,2]
[390768873,1760142648238,-155.0,0.00016499,2]
[390768874,1760142648248,-166.496,0.00016499,2]
[390768875,1760142648258,-168.07,0.00016534,2]
[390768876,1760142648268,-177.44,0.00016534,2]
[390768877,1760142648279,-479.08,0.00016534,2]
[390768878,1760142648289,-150.0,0.00016548,2]
[390768879,1760142648303,-500.0,0.00016548,2]
[390768880,1760142648313,-500.0,0.00016573,2]
[390768881,1760142648324,-596.48579399,0.00016573,2]
[390768882,1760142648334,-2351.0,0.00016588,2]
[390768883,1760142648345,-151.0,0.00016599,2]
[390768884,1760142648355,-151.0,0.00016599,2]
[390768885,1760142648365,-152.36283625,0.00016599,2]
[390768886,1760142648376,-355.33049867,0.000166,2]
[390768887,1760142648386,-150.0,0.00016602,2]
[390768888,1760142648397,-500.0,0.00016602,2]
[390768889,1760142648409,-500.0,0.00016603,2]
[390768890,1760142648420,-200.72,0.00016613,2]
[390768891,1760142648430,-1500.0,0.00016616,2]
[390768892,1760142648440,-2000.0,0.00016616,2]
[390768893,1760142648450,-1961.90353206,0.00016616,2]
[390768894,1760142648460,-2000.0,0.00016616,2]
[390768895,1760142648471,-2000.0,0.00016616,2]
[390768896,1760142648481,-2000.0,0.00016616,2]
[390768897,1760142648491,-2000.0,0.00016616,2]
[390768898,1760142648501,-1718.29,0.00016635,2]
[390768899,1760142648512,-500.0,0.00016643,2]
[390768900,1760142648522,-500.0,0.00016644,2]
[390768901,1760142648532,-500.0,0.00016644,2]
[390768902,1760142648542,-150.0,0.00016657,2]
[390768903,1760142648552,-500.0,0.00016657,2]
[390768904,1760142648564,-5879.0,0.00016658,2]
[390768905,1760142648574,-101278.8893127,0.00016701,2]
[390768906,1760142648584,-199.41495699,0.00016712,2]
[390768907,1760142648594,-500.0,0.00016712,2]
[390768908,1760142648604,-163.2,0.00016712,2]
[390768909,1760142648615,-1000.0,0.00016723,2]
[390768910,1760142648626,-545.25756124,0.00016723,2]
[390768911,1760142648636,-502.591818,0.00016723,2]
[390768912,1760142648646,-155618.5039832,0.00016733,2]
[390768913,1760142648660,-207.4,0.00016752,2]
[390768914,1760142648671,-200.0,0.00016753,2]
[390768915,1760142648681,-500.0,0.00016767,2]
[390768916,1760142648691,-200.0,0.000168,2]
[390768917,1760142648701,-500.0,0.00016822,2]
[390768918,1760142648711,-471.13721014,0.00016837,7]
[390768919,1760142648721,-334.5472959,0.00016872,2]
[390768920,1760142648731,-160.0,0.00016872,2]
[390768921,1760142648740,-257.91778498,0.00016872,2]
[390768922,1760142648750,-500.0,0.00016876,2]
[390768924,1760142648760,-500.0,0.00016877,2]
[390768926,1760142648771,-4149.08040946,0.00016883,2]
[390768927,1760142648781,-474.17,0.00016887,2]
[390768928,1760142648791,-1098.20437616,0.00016889,2]
[390768929,1760142648801,-2500.0,0.000169,6]
[390768930,1760142648811,-1718.29,0.00016909,2]
[390768931,1760142648821,-500.0,0.00016917,2]
[390768932,1760142648831,-500.0,0.00016918,2]
[390768933,1760142648840,-500.0,0.00016918,2]
[390768934,1760142648850,-212.91,0.00016922,2]
[390768935,1760142648860,-18773.12,0.00016922,2]
[390768936,1760142648870,-500.0,0.00016931,2]
[390768937,1760142648880,-348.31530737,0.00016973,2]
[390768938,1760142648890,-500.0,0.00016973,2]
[390768939,1760142648900,-564.68155323,0.00016973,2]
[390768940,1760142648913,-500.0,0.00016973,2]
[390768941,1760142648923,-500.0,0.00016973,2]
[390768942,1760142648932,-500.32725527,0.00016973,2]
[390768943,1760142648942,-500.0,0.00016973,2]
[390768944,1760142648952,-500.0,0.00016973,2]
[390768945,1760142648962,-500.0,0.00016973,2]
[390768946,1760142648972,-207.92916289,0.00016973,2]
[390768947,1760142648982,-500.0,0.00016973,2]
[390768948,1760142648993,-500.0,0.00016973,2]
[390768949,1760142649002,-500.81311208,0.00016973,2]
[390768950,1760142649012,-500.0,0.00016973,2]
[390768951,1760142649021,-340.02375913,0.00016973,2]
[390768952,1760142649032,-500.0,0.00016973,2]
[390768953,1760142649042,-500.0,0.00016973,2]
[390768954,1760142649052,-523.40980672,0.00016973,2]
[390768955,1760142649062,-559.89846397,0.00016973,2]
[390768956,1760142649071,-500.0,0.00016973,2]
[390768957,1760142649081,-500.0,0.00016973,2]
[390768958,1760142649091,-500.0,0.00016973,2]
[390768959,1760142649101,-500.0,0.00016973,2]
[390768960,1760142649111,-341.46314723,0.00016973,2]
[390768961,1760142649121,-500.0,0.00016986,2]
[390768962,1760142649131,-250.0,0.00016986,2]
[390768963,1760142649141,-5754.07922288,0.00016989,2]
[390768964,1760142649151,-460.826468,0.00016989,2]
[390768965,1760142649163,-151.0,0.00016997,2]
[390768966,1760142649173,-315.83250131,0.00017,30]
[390768967,1760142649183,-1508166.35572605,0.00017,2]
[390768968,1760142649195,-2000.0,0.00017,2]
[390768969,1760142649206,-2000.0,0.00017,2]
[390768970,1760142649216,-2000.0,0.00017,2]
[390768971,1760142649226,-2000.0,0.00017,2]
[390768972,1760142649235,-2000.0,0.00017,2]
[390768973,1760142649245,-2000.0,0.00017,2]
[390768974,1760142649255,-2000.0,0.00017,2]
[390768975,1760142649266,-2000.0,0.00017,2]
[390768976,1760142649277,-668.09,0.00017,2]
[390768977,1760142649294,-250.0,0.00017,2]
[390768978,1760142649303,-14898.85986103,0.00017,2]
[390768979,1760142649314,-5455.94808388,0.00017,2]
[390768980,1760142649324,-151.0,0.00017,2]
[390768981,1760142649335,-151.0,0.00017,2]
[390768982,1760142649346,-151.0,0.00017,2]
[390768983,1760142649356,-151.0,0.00017,2]
[390768984,1760142649369,-151.0,0.00017,2]
[390768985,1760142649379,-172.728692,0.00017,2]